Cogmind - Beta 13 @@@ ROGUE MODE // 2024.04.04 @ 18:39:38 Player: Iris Result: Self-destructed Performance ------------- Evolutions (1) 500 Regions Visited (3) 600 Robots Destroyed (16) 80 Value Destroyed (319) 319 Prototype IDs (3) 60 Alien Tech Used (0) 0 Bonus (0) 0 TOTAL SCORE: 1559 Bonus ------- None Cogmind --------- Core Integrity 282/400 Matter 6/300 Energy 100/100 System Corruption 0% Temperature Cool (0) Movement Core (50) Location -9/Mines Parts ------- > --- POWER (1) -------- (None) > --- PROPULSION (3) --- (None) > --- UTILITY (3) ------ Signal Interpreter Transport Network Coupler > --- WEAPON (2) ------- Grenade Launcher > --- INVENTORY (5) ---- Light Ion Engine ECM Suite Grenade Launcher Peak State ------------ > --- POWER ------------ Ion Engine > --- PROPULSION ------- Wheel Compact Wheel > --- UTILITY ---------- Small Storage Unit Medium Storage Unit > --- WEAPON ----------- Medium Laser Particle Gun > --- INVENTORY -------- Light Ion Engine Small Laser [Rating: 8] Favorites ----------- Power Light Ion Engine Engine Light Ion Engine Propulsion Flight Unit Wheel Compact Wheel Flight Unit Flight Unit Utility ECM Suite Device ECM Suite Storage Small Storage Unit Processor Transport Network Coupler Weapon Grenade Launcher Energy Gun Medium Laser Launcher Grenade Launcher Slashing Weapon Mining Claw Build | -11 -10 -9 -9 ------- Run | Yrd Mat Mat Min Slots Evolved 2 | . . 2 . Power . | . . . . Propulsion 1 | . . 1 . Utility 1 | . . 1 . Weapon . | . . . . Parts Attached 27 | 7 16 3 1 Power 6 | 2 3 1 . Engine 6 | 2 3 1 . Core . | . . . . Reactor . | . . . . Propulsion 6 | 2 4 . . Treads . | . . . . Leg . | . . . . Wheel 2 | 2 . . . Hover . | . . . . Flight 4 | . 4 . . Utility 7 | 1 4 2 . Device 3 | . 2 1 . Storage 2 | 1 1 . . Processor 2 | . 1 1 . Hackware . | . . . . Protection . | . . . . Artifact . | . . . . Weapon 8 | 2 5 . 1 Energy Gun 3 | 2 1 . . Energy Cannon . | . . . . Ballistic Gun . | . . . . Ballistic Cannon . | . . . . Launcher 4 | . 3 . 1 Special Weapon . | . . . . Impact Weapon . | . . . . Slashing Weapon 1 | . 1 . . Piercing Weapon . | . . . . Special Melee Weapon . | . . . . Unidentified Prototypes . | . . . . Parts Lost 8 | . 4 3 1 Power 2 | . 1 1 . Propulsion 4 | . 2 2 . Utility 1 | . . . 1 Weapon 1 | . 1 . . Highest Loss Streak 4 | . 2 3 4 To Critical Strikes . | . . . . Average Slot Usage (%) 68 | . 70 63 33 Engine 9 | . 9 10 . Wheel 4 | . 5 . . Flight 15 | . 15 19 . Device 9 | . 9 11 5 Storage 3 | . 4 . . Processor 5 | . 3 13 22 Energy Gun 6 | . 7 . . Launcher 10 | . 11 8 5 Slashing Weapon 2 | . 3 . . Naked Turns . | . . . . Heaviest Build 25 | 13 25 9 5 Greatest Support 26 | 26 26 8 3 Greatest Overweight (x) 2 | . 2 2 1 Average Overweight (x) . | . . . . Largest Inventory Capacity 10 | 8 10 5 5 Average Capacity 5 | 5 5 5 5 Most Carried 5 | 1 5 5 4 Average Carried 4 | . 4 4 3 Final Capacity 8 | 8 5 5 5 Final Carried 5 | 1 5 4 3 Class Distribution -------------------- 100% | Mutant Dominant Class ---------------- Mutant | -10/Materials Mutant | -9/Materials Mutant | -9/Mines Resources | -11 -10 -9 -9 ----------- Run | Yrd Mat Mat Min Matter Collected 370 | 78 287 . 5 Remotely . | . . . . Salvage Created 340 | . 321 . 19 Parts 19 | . 17 2 . Haulers Intercepted 1 | . 1 . . Recyclers Shooed . | . . . . Parts Field Recycled . | . . . . Retrieved Matter . | . . . . Parts Self-Destructed . | . . . . Prevented . | . . . . Kills | -11 -10 -9 -9 ------- Run | Yrd Mat Mat Min Combat Hostiles Destroyed 13 | . 11 . 2 Guns 6 | . 6 . . AOE 7 | . 5 . 2 Classes Destroyed 7 | . 5 1 1 Worker 2 | . 2 . . Hauler 1 | . 1 . . Operator 1 | . 1 . . Watcher 1 | . . 1 . Swarmer 6 | . 6 . . Grunt 5 | . 5 . . Assembled 2 | . . . 2 Best Kill Streak 6 | . 6 1 2 Combat Bots Only 6 | . 6 . 2 Max Kills in Single Turn 2 | . 2 1 2 Gunslinging . | . . . . Exploded 2 | . 2 . 2 Melee . | . . . . Uniques/NPCs Destroyed . | . . . . Combat | -11 -10 -9 -9 -------- Run | Yrd Mat Mat Min Hostile Shots Fired 79 | . 53 21 5 Missed 18 | . 10 6 2 Damage Taken 855 | . 548 220 87 Core 290 | . 172 88 30 Absorbed by Shields . | . . . . Core Remaining (%) 65 | 100 31 . . Volleys Fired 34 | . 29 3 2 Largest 2 | . 2 1 1 Hottest 115 | . 115 30 30 Shots Fired 52 | . 47 3 2 Gun 37 | . 37 . . Cannon . | . . . . Launcher 15 | . 10 3 2 Special . | . . . . Kinetic . | . . . . Thermal 37 | . 37 . . Explosive 15 | . 10 3 2 Electromagnetic . | . . . . Robot Hit Streak 6 | . 6 2 . Robot Miss Streak 2 | . 2 1 2 Penetration Max . | . . . . Secondary Targets . | . . . . Shots Hit Robots 33 | . 31 2 . Core Hits 29 | . 22 3 4 Critical Kills . | . . . . Critical Parts Destroyed . | . . . . Critical Strikes 3 | . 3 . . Burn 3 | . 3 . . Melee Attacks 17 | . 17 . . Impact . | . . . . Slashing 17 | . 17 . . Piercing . | . . . . Sneak Attacks 1 | . 1 . . Combat Hostiles . | . . . . Follow-up Attacks . | . . . . Damage Inflicted 1071 | . 842 95 134 Guns 326 | . 326 . . Cannons . | . . . . Explosions 638 | . 409 95 134 Melee 88 | . 88 . . Ramming 19 | . 19 . . Kinetic . | . . . . Thermal 326 | . 326 . . Explosive 638 | . 409 95 134 Electromagnetic . | . . . . Impact . | . . . . Slashing 88 | . 88 . . Piercing . | . . . . Highest Corruption 4 | . 4 . . Average Corruption 4 | . 4 . . Corruption Purged . | . . . . Corruption Blocked . | . . . . Effects 8 | . 8 . . Matter Fused 2 | . 2 . . Heat Flow Errors 3 | . 3 . . Data Loss (minor) 2 | . 2 . . Alerts 1 | . 1 . . Overload Shots . | . . . . Overflow Damage 42 | . 35 . 7 Projectiles . | . . . . Explosions 12 | . 5 . 7 Melee 30 | . 30 . . Knockbacks . | . . . . Impact . | . . . . Kinetic . | . . . . Secondary . | . . . . Self-Inflicted Damage 97 | . 50 10 37 Shots 5 | . 3 1 1 Rammed 7 | . 6 1 . Targets Rammed 7 | . 6 1 . Kicked . | . . . . Crushed . | . . . . Highest Temperature 537 | . 537 . 32 Average Temperature 179 | . 182 . 18 Received Heat Transfer 257 | . 102 75 80 Effects 12 | . 12 . . Shutdowns 1 | . 1 . . Matter Decay 4 | . 4 . . Short Circuit 1 | . 1 . . Damage (major) 5 | . 5 . . Damage (core) 1 | . 1 . . Siege Activations . | . . . . Robots Corrupted . | . . . . Combat Hostiles . | . . . . Parts Fried . | . . . . Impact Corruptions . | . . . . Robots Melted . | . . . . Combat Hostiles . | . . . . Parts Melted 4 | . 4 . . Heat Transferred 1075 | . 1075 . . Parts Sabotaged . | . . . . Parts Stolen . | . . . . Parts Stripped . | . . . . Power Chain Reactions . | . . . . Alert | -11 -10 -9 -9 ------- Run | Yrd Mat Mat Min Peak Influence 246 | . 246 187 53 Initial 97 | . . 97 37 Average 116 | . 128 115 49 Maximum Alert Level 1 | . 1 . . Low Security (%) 84 | 100 79 100 100 Level 1 15 | . 20 . . Level 2 . | . . . . Level 3 . | . . . . Level 4 . | . . . . Level 5 . | . . . . High Security . | . . . . Max Security . | . . . . Squads Dispatched 7 | . 4 3 . Investigation 4 | . 2 2 . Extermination . | . . . . Reinforcement 3 | . 2 1 . Assault . | . . . . Garrison . | . . . . Intercept . | . . . . Searches Triggered . | . . . . Construction Impeded . | . . . . Haulers Reinforced . | . . . . Active Scanning Responses . | . . . . Cargo Convoy Interrupts . | . . . . Stealth | -11 -10 -9 -9 --------- Run | Yrd Mat Mat Min Distress Signals 1 | . . . 1 Communications Jammed . | . . . . Distress Signals . | . . . . Times Spotted 36 | . 16 10 10 Peak Tracking Total 9 | . 4 7 9 Tactical Retreats 5 | . 1 3 1 Traps | -11 -10 -9 -9 ------- Run | Yrd Mat Mat Min Traps Triggered 1 | . 1 . . Indirectly . | . . . . Trap Hack Attempts . | . . . . Triggered . | . . . . Disarmed . | . . . . Reprogrammed . | . . . . Reused . | . . . . Traps Extracted . | . . . . Installed . | . . . . Triggered . | . . . . Machines | -11 -10 -9 -9 ---------- Run | Yrd Mat Mat Min Machines Disabled 5 | . 4 1 . Max in Single Turn 2 | . 2 1 . Machines Repaired . | . . . . Machines Dismantled . | . . . . Machines Sabotaged . | . . . . Overloaded Fab Kills . | . . . . Hacking | -11 -10 -9 -9 --------- Run | Yrd Mat Mat Min Machines Accessed 7 | . 4 3 . Terminals 7 | . 4 3 . Fabricators . | . . . . Repair Stations . | . . . . Recycling Units . | . . . . Scanalyzers . | . . . . Garrison Access . | . . . . Total Hacks 23 | . 14 9 . Successful 6 | . 2 4 . Failed 17 | . 12 5 . Catastrophic 6 | . 4 2 . Database Lockouts . | . . . . Manual 5 | . . 5 . Terminals 23 | . 14 9 . Fabricators . | . . . . Repair Stations . | . . . . Recycling Units . | . . . . Scanalyzers . | . . . . Garrison Access . | . . . . Terminal Hacks 6 | . 2 4 . Prototype ID Bank 2 | . 2 . . Branch Access Points 1 | . . 1 . Alert Level 1 | . . 1 . Unreport Threat 1 | . . 1 . Dispatch Records 1 | . . 1 . Fabricator Hacks . | . . . . Repair Station Hacks . | . . . . Recycling Unit Hacks . | . . . . Scanalyzer . | . . . . Garrison Access Hacks . | . . . . Unauthorized Hacks . | . . . . Terminals . | . . . . Fabricators . | . . . . Repair Stations . | . . . . Recycling Units . | . . . . Scanalyzers . | . . . . Garrison Access . | . . . . Data Cores Recovered . | . . . . Used . | . . . . Hacking Detections 7 | . 4 3 . Full Trace Events 5 | . 3 2 . Feedback Events . | . . . . Feedback Blocked . | . . . . Robot Schematics Acquired . | . . . . Robots Built . | . . . . Authchips . | . . . . Time . | . . . . Total Robot Build Rating . | . . . . Part Schematics Acquired . | . . . . Parts Built . | . . . . Authchips . | . . . . Time . | . . . . Total Part Build Rating . | . . . . Parts Repaired . | . . . . Time . | . . . . Parts Recycled . | . . . . Recycled Matter . | . . . . Retrieved Matter . | . . . . Retrieved Components . | . . . . Parts Scanalyzed . | . . . . Part Schematics Acquired . | . . . . Parts Damaged . | . . . . Bothacking | -11 -10 -9 -9 ------------ Run | Yrd Mat Mat Min Used RIF Installer . | . . . . Robots Hacked . | . . . . Non-combat . | . . . . Combat . | . . . . Robot Hacks Applied . | . . . . Relay Couplers Released . | . . . . Fabnet Peak Effective % . | . . . . Robots Rewired . | . . . . Allies Hacked . | . . . . Hacks Repelled . | . . . . Allies | -11 -10 -9 -9 -------- Run | Yrd Mat Mat Min Total Allies . | . . . . Largest Group . | . . . . Highest-Rated Group . | . . . . Highest-Rated Ally . | . . . . Total Orders . | . . . . Ally Attacks . | . . . . Total Damage . | . . . . Kills . | . . . . Allies Corrupted . | . . . . Allies Melted . | . . . . Intel | -11 -10 -9 -9 ------- Run | Yrd Mat Mat Min Robot Analysis Total . | . . . . Derelict Logs Recovered . | . . . . Drone Launches . | . . . . Drone Recoveries . | . . . . Exploration | -11 -10 -9 -9 ------------- Run | Yrd Mat Mat Min Turns Passed 975 | 60 747 145 23 Spaces Moved 1189 | 59 790 311 29 Core 56 | 10 . 17 29 Treads . | . . . . Legs . | . . . . Wheels 160 | 49 111 . . Hover . | . . . . Flight 973 | . 679 294 . Fastest Speed 37 | 50 37 37 50 Average Speed 65 | 84 73 42 51 Slowest Speed 200 | 100 200 200 100 Overloaded Moves . | . . . . Propulsion Burnouts . | . . . . Robots Hopped 10 | . 6 4 . Cave-ins Triggered 1 | . 1 . . Exploration Rate (%) 29 | 3 80 27 6 Regions Visited 3 Branch Regions 1 Pre-discovered Areas . | . . . . Known Exits Taken 1 | . . 1 . Unknown Exits Taken 2 | 1 1 . . Scrap Searched . | . . . . Spaces Dug 19 | . 19 . . Terrain Destroyed 91 | . 67 13 11 Melee 13 | . 13 . . Projectile . | . . . . AOE 78 | . 54 13 11 Terrain Rammed . | . . . . Walls Destroyed . | . . . . Machines Disabled . | . . . . Actions | -11 -10 -9 -9 --------- Run | Yrd Mat Mat Min Total 1285 | 66 868 317 34 Wait 2 | . . . 2 Move 1166 | 58 777 302 29 Hop 10 | . 6 4 . Pick Up 2 | . 2 . . Fast Attach 26 | 7 16 3 . Attach 1 | . . . 1 Detach 6 | 1 5 . . Swap . | . . . . Drop 14 | . 10 4 . Fire 34 | . 29 3 2 Melee 17 | . 17 . . Ram 7 | . 6 1 . Kick . | . . . . Crush . | . . . . Escape Stasis . | . . . . Rewire . | . . . . Trap . | . . . . Miscellaneous . | . . . . Route ------- -11/Scrapyard -10/Materials (discovered 2 exits: *Mat / [*Min]) -9/Materials (discovered 3 exits: *Min / Sto x2) -9/Mines History --------- Turn | Location | Event 16 | -11/Scrapyard | Discovered new exit (range 16) 61 | -11/Scrapyard | Entered Materials 280 | -10/Materials | Discovered new exit (range 15) 321 | -10/Materials | Crushed by falling debris 323 | -10/Materials | Build established: Mutant 396 | -10/Materials | Discovered new exit (range 8) 462 | -10/Materials | Core integrity fell below 50% 808 | -10/Materials | Entered another Materials area 808 | -9/Materials | Evolved 2 slots: Propulsion x1, Utility x1 816 | -9/Materials | Identified exit to Mines 816 | -9/Materials | Identified exit to Storage 953 | -9/Materials | Entered Mines 954 | -9/Mines | Assembled infested the area 959 | -9/Mines | Assisted by a Guerilla fighting off Assembled 976 | -9/Mines | Self-destructed Last Messages --------------- coming from, and they're closing on this area, come on!" 00960_ J3-Q3U(h): "I'll hold them off! Go on ahead or try to find another way!" 00960_ HV Slug penetrates as-35551. 00960_ as-35551 suffers critical hit (Destroy). 00960_ as-35551 destroyed. 00963_ K-01 Serf collects debris. 00964_ as-60248 sneak attacks. 00964_ K-01 Serf system corrupted by crushing effect. 00965_ K-01 Serf system terminally corrupted. 00966_ ECM Suite destroyed. 00966_ Destroyed ECM Suite. 00966_ Destroyed Wheel. 00966_ as-44906 destroyed. 00966_ as-03127 destroyed. 00969_ K-01 Serf destroyed. 00972_ Critical hit (Burn: +80). 00973_ Acquired 5 matter. Map ----- +----------------------------------------------------+ | ??????????????????????????????????? | | ??????????????????????????????????? | | ??????????????????????????????????? | | ??????????????????????????????????? | | ??????????????????????????????????? | | ??????????????????????????????????? | | ??????????????????????????????????? | | ??????????????????????????????????? | | ??????????????????????????????????? | | ??????????????????????????????????? | | ??????????????????????????????????? | | ??????????????????????????????????? | | ??????????????????????????????????? | | ??????????????????????????????????? | | ??????????????????????????????????? | | ??????????????????????????????????? | | ??????????????????????????????????? | | ??????????????????????????????????? | | ??????????????????????????????????? | | ??????????????????????????????????? | | ??????????????????????????????????? | | ??????????????????????????????????? | | ??????????????????????????????????? | | ???#??????####????????????????????? | | ???# ???### #####????????????????? | | ??## ???# @ #????????????????? | | ??# ??# aa #????????????????? | | ??# ??# " #????????????????? | | ??# % ## a a #????????????????? | | ??# %%# a #????????????????? | | ??# ]%% % #????????????????? | | ??# % ## #????????????????? | | ??## #?# #????????????????? | | ???###??# #????????????????? | | ????????## #????????????????? | | ?????????#########????????????????? | | ??????????????????????????????????? | | ??????????????????????????????????? | | ??????????????????????????????????? | | ??????????????????????????????????? | | ??????????????????????????????????? | | ??????????????????????????????????? | | ??????????????????????????????????? | | ??????????????????????????????????? | | ??????????????????????????????????? | | ??????????????????????????????????? | | ??????????????????????????????????? | | ??????????????????????????????????? | | ??????????????????????????????????? | | ??????????????????????????????????? | +----------------------------------------------------+ Best States ------------- Heat Dissipation 28 Energy Generation 12 Energy Capacity 265 Matter Stores 194 Matter Capacity 300 Sight Range 16 Terrain Scan Density 10 ECM Strength 2 Evasion (%) 62 Item Schematics ----------------- None Robot Schematics ------------------ None Fabricated ------------ Nothing Alien Tech Used ----------------- None Achievements -------------- Part-time Excavator Challenges ------------ None Game ------ Seed SpacefoldWeaponsCompactor Manual? 0 Play Time 00:12:32 Cumulative 7.4 hours Start 2024.04.04 @ 18:27:59 End 2024.04.04 @ 18:39:38 Sessions 1 Manual Loads 0 Difficulty Rogue Special Mode None Game No. 20 Rogue 20 Adventurer 0 Explorer 0 Win Type - Total 0 Types 0/0/0/0/0/0/0/0/0 Lore% 12 Gallery% 16 Achievement% 16 Wizard Run 0 Options --------- Layout 2 ASCII 0 Keyboard 1 Movement Arrows Keybinds 0 Fullscreen 2 Font 32/SmallcapsGlow Map View 50x44 Zoom Use 0% Tactical HUD 1 Map Filters NONE Filters NONE Steam 1 RUN: 8f9cc416-ff78-4c7f-9aed-e9421def8731